bitfinex-derivatives/quotes_SOLF0:USTF0_20240912
["timestamp","ask_amount","ask_price","bid_price","bid_amount"]
[1726151908676,3.3098,135.97,135.92,3.3108]
[1726151908882,28.25,135.99,135.9,3.64846968]
[1726151909280,3.3096,135.98,135.9,9.83089247]
[1726151909972,3.3096,135.98,135.92,3.3107]
[1726151910483,1.3828,136.0,135.9,14.80031282]
[1726151910796,1.3828,136.0,135.91,6.18242279]
[1726151910981,3.3093,135.99,135.91,6.18242279]
[1726151911191,3.3093,135.99,135.9,14.80031282]
[1726151911576,1.3828,136.0,135.91,6.18242279]
[1726151911766,1.3828,136.0,135.91,11.15184314]
[1726151911967,3.3094,135.99,135.94,3.3103]
[1726151912162,3.3094,135.99,135.91,11.15184314]
[1726151912376,1.3828,136.0,135.91,11.15184314]
[1726151913282,3.3094,135.98,135.93,3.3104]
[1726151913578,1.3828,136.0,135.91,6.18242279]
[1726151913775,1.3828,136.0,135.91,11.15340739]
[1726151914372,1.3828,136.0,135.91,6.18242279]
[1726151914568,3.3096,135.98,135.93,3.3105]
[1726151914772,28.25,135.99,135.9,9.83089247]
[1726151914983,28.25,135.99,135.9,3.64846968]
[1726151915282,28.25,135.99,135.87,28.25]
[1726151915480,28.25,135.97,135.89,21.04000759]
[1726151915719,1.3937,135.96,135.89,8.60224184]
[1726151915882,1.3937,135.96,135.89,4.97086035]
[1726151916073,17.65,135.94,135.86,6.18200408]
[1726151916378,17.65,135.94,135.87,6.18200408]
[1726151916579,19.0437,135.96,135.88,9.8225808]
[1726151916771,19.0437,135.96,135.9,3.3114]
[1726151916772,3.3103,135.95,135.9,3.3114]
[1726151917176,19.0437,135.96,135.88,9.80345471]
[1726151917575,3.3105,135.94,135.89,3.3115]
[1726151917777,19.0437,135.96,135.89,3.3115]
[1726151918167,29.6737,135.96,135.88,9.80592766]
[1726151918374,28.28,135.94,135.86,4.97212187]
[1726151918583,28.28,135.94,135.83,28.28]
[1726151918768,3.3107,135.93,135.87,3.3119]
[1726151918976,28.28,135.94,135.85,6.18725354]
[1726151919170,28.28,135.94,135.85,11.16344631]
[1726151919426,3.3108,135.93,135.87,3.3119]
[1726151919966,3.3108,135.93,135.88,3.3118]
[1726151920170,28.28,135.94,135.85,6.18725354]
[1726151920383,28.28,135.94,135.86,9.49945354]
[1726151920593,1.3416,135.93,135.85,6.18725354]
[1726151920777,1.3416,135.93,135.84,11.17226818]
[1726151921082,4.6523,135.93,135.85,6.19256239]
[1726151921279,1.3416,135.93,135.85,3.63315177]
[1726151921487,3.311,135.92,135.86,3.3122]
[1726151921985,3.311,135.92,135.84,6.19256239]
[1726151922167,3.311,135.92,135.86,3.3123]
[1726151922370,1.3416,135.93,135.84,6.19256239]
[1726151922570,1.3416,135.93,135.88,3.3118]
[1726151923174,1.3416,135.93,135.89,3.3115]
[1726151923374,1.3416,135.93,135.87,3.61070219]
[1726151923577,4.6523,135.93,135.85,6.19256239]
[1726151924079,4.6523,135.93,135.88,3.3117]
[1726151925476,1.3416,135.93,135.85,3.67208771]
[1726151925689,3.3109,135.92,135.87,3.312]
[1726151925890,1.3416,135.93,135.85,4.98203819]
[1726151926205,28.28,135.91,135.84,3.67429538]
[1726151926399,28.28,135.91,135.8,29.07388711]
[1726151926592,28.28,135.91,135.81,11.18226427]
[1726151926882,28.28,135.91,135.84,3.3126]
[1726151926883,3.3115,135.9,135.84,3.3126]
[1726151927296,31.5913,135.91,135.82,28.28]
[1726151927496,3.3113,135.91,135.83,11.18226427]
[1726151927695,29.6216,135.93,135.86,3.3123]
[1726151927895,29.6216,135.93,135.83,21.09681931]
[1726151928205,29.6216,135.93,135.83,4.98455428]
[1726151928206,3.3111,135.91,135.83,4.98455428]
[1726151928379,3.3111,135.91,135.86,3.3122]
[1726151928988,3.3115,135.9,135.85,3.3125]
[1726151929185,29.6216,135.93,135.83,6.19694534]
[1726151929385,28.28,135.91,135.83,6.19694534]
[1726151929986,28.28,135.91,135.82,28.28]
[1726151930698,3.3116,135.9,135.85,3.3124]
[1726151933703,28.28,135.91,135.82,28.28]
[1726151934590,3.3116,135.89,135.82,28.28]
[1726151934788,1.3416,135.93,135.82,28.28]
[1726151934988,1.3416,135.93,135.84,28.28]
[1726151935449,1.3416,135.93,135.85,6.20057116]
[1726151935722,1.3416,135.93,135.87,3.312]
[1726151935997,3.3113,135.91,135.86,3.3123]
[1726151936309,1.3416,135.93,135.86,3.3123]
[1726151936993,3.3114,135.9,135.85,3.3125]
[1726151937194,1.3416,135.93,135.83,3.61669242]
[1726151937195,1.3896,135.89,135.83,3.61669242]
[1726151937407,1.3896,135.89,135.72,6.6314]
[1726151937408,2.8149,135.89,135.84,3.3128]
[1726151937701,2.8149,135.89,135.83,3.74365202]
[1726151937908,2.8149,135.89,135.81,4.98733604]
[1726151938093,1.3896,135.89,135.81,3.65091631]
[1726151938400,1.3896,135.89,135.81,33.26733604]
[1726151938702,1.3896,135.89,135.85,3.3125]
[1726151939598,1.3896,135.89,135.82,11.18883386]
[1726151939599,1.3896,135.89,135.84,3.3127]
[1726151939793,4.7013,135.89,135.84,3.3127]
[1726151940223,19.0596,135.89,135.82,3.3132]
[1726151940394,3.3119,135.88,135.81,14.87839005]
[1726151940591,3.3119,135.88,135.79,17.67]
[1726151940901,19.0596,135.89,135.81,6.19923553]
[1726151941093,19.0596,135.89,135.81,3.69746209]
[1726151941397,3.3121,135.87,135.82,3.3132]
[1726151941599,17.67,135.85,135.8,19.16169358]
[1726151941798,17.67,135.85,135.73,4.76527307]
[1726151941799,3.3131,135.83,135.81,6.19923553]
[1726151941994,3.3131,135.83,135.78,29.08732126]
[1726151942301,17.67,135.85,135.79,11.19163437]
[1726151942493,17.67,135.82,135.74,29.10018808]
[1726151942693,17.67,135.82,135.75,29.10018808]
[1726151942891,20.9835,135.82,135.77,3.3145]
[1726151943094,17.67,135.82,135.76,19.90487424]
[1726151943288,17.67,135.82,135.76,16.74569055]
[1726151943512,3.3137,135.81,135.77,6.20494597]
[1726151943693,17.67,135.82,135.76,12.97497859]
[1726151943928,17.67,135.84,135.76,7.98460221]
[1726151944192,17.67,135.82,135.75,6.20710951]
[1726151944402,17.67,135.82,135.75,4.99037638]
[1726151944721,20.9834,135.82,135.75,4.99037638]
[1726151944904,17.67,135.82,135.74,23.87710951]
[1726151945095,17.67,135.82,135.74,17.67]
[1726151945291,1.325,135.85,135.73,9.97084661]
[1726151945522,19.024,135.81,135.73,3.76417734]
[1726151945709,19.024,135.81,135.71,10.90653767]
[1726151945904,19.024,135.81,135.71,14.65119815]
[1726151946102,19.024,135.81,135.71,8.73705705]
[1726151946307,19.024,135.81,135.71,9.65801289]
[1726151946496,19.024,135.81,135.71,8.73637865]
[1726151946704,3.3141,135.79,135.71,8.73637865]
[1726151946894,19.024,135.81,135.71,8.73637865]
[1726151947507,17.67,135.78,135.71,4.99171817]
[1726151947810,17.67,135.78,135.67,17.67]
[1726151948009,1.354,135.81,135.72,3.3157]
[1726151948213,17.67,135.78,135.71,3.63756906]
[1726151948396,17.67,135.8,135.69,17.67]
[1726151948603,1.354,135.81,135.71,17.67]
[1726151949110,3.3142,135.79,135.71,17.67]
[1726151949313,17.67,135.8,135.71,17.67]
[1726151949707,17.67,135.8,135.73,3.3154]
[1726151950216,3.3142,135.79,135.73,3.3153]
[1726151950423,17.67,135.8,135.69,17.67]
[1726151950616,3.3146,135.77,135.72,3.3156]
[1726151951005,17.67,135.77,135.69,21.37165745]
[1726151951526,3.3149,135.76,135.71,3.3159]
[1726151951712,17.67,135.77,135.69,3.70165745]
[1726151951894,17.67,135.77,135.67,17.67]
[1726151952096,17.67,135.77,135.64,5.92034943]
[1726151952408,17.67,135.77,135.67,17.67]
[1726151952630,17.67,135.77,135.7,3.3163]
[1726151953405,17.67,135.75,135.69,3.3164]
[1726151953600,17.67,135.75,135.67,17.67]
[1726151953912,17.67,135.75,135.7,3.3161]
[1726151954106,17.67,135.75,135.64,4.99834929]
[1726151954305,3.3155,135.73,135.67,3.3168]
[1726151954503,21.29253168,135.75,135.64,22.66834929]
[1726151954504,1.4138,135.74,135.64,22.66834929]
[1726151954697,1.4138,135.74,135.64,17.67]
[1726151955014,4.7293,135.74,135.68,3.3166]
[1726151955302,1.4138,135.74,135.64,17.67]
[1726151955512,3.3161,135.71,135.63,17.67]
[1726151956119,3.3161,135.71,135.65,3.3173]
[1726151956319,3.3163,135.7,135.65,3.3173]
[1726151956500,17.67,135.72,135.59,139.98162915]
[1726151956702,3.3163,135.7,135.61,17.67]
[1726151956902,3.3163,135.7,135.61,21.33145794]
[1726151957112,1.318,135.71,135.65,3.3175]
[1726151957413,1.318,135.71,135.63,17.67]
[1726151957611,1.318,135.71,135.67,3.3168]
[1726151958116,18.988,135.71,135.59,139.98162915]
[1726151958313,3.3167,135.69,135.6,17.67]
[1726151958628,17.67,135.69,135.62,3.3181]
[1726151958927,17.67,135.69,135.59,143.73890784]
[1726151958928,17.67,135.67,135.59,3.75727869]
[1726151959114,2.7423,135.66,135.56,17.67]
[1726151959379,3.3175,135.65,135.56,17.67]
[1726151959624,2.7423,135.66,135.56,17.67]
[1726151959916,2.7423,135.66,135.6,3.3185]
[1726151960111,3.3175,135.65,135.56,17.67]
[1726151960511,2.7423,135.66,135.58,17.67]
[1726151960736,2.7423,135.66,135.56,17.67]
[1726151960908,20.4123,135.66,135.59,3.3189]
[1726151961326,17.67,135.64,135.51,3.65814107]
[1726151961618,17.67,135.62,135.54,3.3201]
[1726151961930,3.3185,135.61,135.53,3.73497529]
[1726151962116,17.67,135.62,135.51,17.67]
[1726151962726,20.9889,135.6,135.5,17.67]
[1726151962917,1.4258,135.59,135.5,17.67]
[1726151963292,1.4258,135.59,135.52,3.3206]
[1726151963517,1.4258,135.59,135.52,17.67]
[1726151963717,1.4258,135.59,135.53,3.66533864]
[1726151964216,1.4258,135.59,135.52,17.67]
[1726151964217,1.4258,135.59,135.46,3.74465102]
[1726151964424,1.4258,135.59,135.53,3.3204]
[1726151964619,2.7835,135.59,135.5,3.73469086]
[1726151964815,2.7835,135.59,135.52,17.67]
[1726151965014,6.1027,135.59,135.49,17.67]
[1726151965314,20.4535,135.59,135.49,17.67]
[1726151966019,17.67,135.57,135.46,3.76272687]
[1726151966223,1.3916,135.56,135.47,19.02583377]
[1726151966426,1.3916,135.56,135.52,3.3205]
[1726151966811,20.4535,135.59,135.49,17.67]
[1726151967140,1.4258,135.59,135.51,17.67]
[1726151968023,1.4258,135.59,135.53,3.3202]
[1726151968528,2.8268,135.59,135.47,3.7161514]
[1726151968830,2.8268,135.59,135.51,17.67]
[1726151969208,17.67,135.57,135.46,3.62465874]
[1726151969437,17.67,135.57,135.51,3.3207]
[1726151969663,2.8268,135.59,135.48,17.67]
[1726151970134,2.8268,135.59,135.46,3.74760218]
[1726151970357,17.67,135.56,135.47,1.35586314]
[1726151970622,17.67,135.56,135.46,17.67]
[1726151970832,17.67,135.56,135.47,1.35592347]
[1726151970983,17.67,135.56,135.5,3.3211]
[1726151971373,17.67,135.56,135.46,21.42977571]
[1726151971562,20.9893,135.58,135.51,3.3207]
[1726151972034,20.9893,135.58,135.5,3.3211]
[1726151972035,3.3197,135.57,135.5,3.3211]
[1726151972231,2.8268,135.59,135.46,21.42977571]
[1726151972232,17.67,135.56,135.46,21.42977571]
[1726151972422,17.67,135.56,135.46,17.67]
[1726151972618,3.3201,135.55,135.46,17.67]
[1726151972857,2.8268,135.59,135.49,17.67]
[1726151973035,20.9894,135.58,135.51,3.3209]
[1726151973241,17.67,135.56,135.45,17.67]
[1726151973562,20.9899,135.56,135.49,3.3212]
[1726151973745,17.67,135.54,135.46,3.7605166]
[1726151973920,17.67,135.54,135.43,17.67]
[1726151974129,17.67,135.54,135.48,3.3214]
[1726151974738,17.67,135.54,135.49,3.3214]
[1726151975108,17.67,135.54,135.45,17.67]
[1726151975109,20.9902,135.54,135.48,3.3216]
[1726151975523,20.9902,135.54,135.46,3.62250922]
[1726151975524,17.67,135.54,135.46,3.62250922]
[1726151975737,17.67,135.56,135.45,17.67]
[1726151975913,17.67,135.56,135.46,3.6935341]
[1726151976115,17.67,135.56,135.49,3.3214]
[1726151976526,3.3201,135.55,135.49,3.3214]
[1726151976923,20.9898,135.56,135.5,3.3211]
[1726151977334,17.67,135.56,135.5,3.3209]
[1726151977543,17.67,135.58,135.47,17.67]
[1726151977722,2.8268,135.59,135.51,17.67]
[1726151977923,2.8268,135.59,135.49,17.67]
[1726151978231,31.1768,135.59,135.48,28.35]
[1726151978436,31.1768,135.59,135.53,3.3204]
[1726151978877,31.1768,135.59,135.5,28.35]
[1726151979050,28.35,135.59,135.5,28.35]
[1726151979228,1.2868,135.6,135.51,1.35561733]
[1726151979437,1.2868,135.6,135.49,28.35]
[1726151979633,29.6368,135.6,135.5,1.35563465]
[1726151979829,32.9555,135.6,135.5,1.35563465]
[1726151980234,29.6368,135.6,135.5,1.35563465]
[1726151980443,1.2868,135.6,135.55,3.3199]
[1726151980634,1.2868,135.6,135.49,32.1214897]
[1726151980836,31.6683,135.62,135.52,28.35]
[1726151981369,28.35,135.62,135.52,28.35]
[1726151981524,28.35,135.62,135.53,1.35540041]
[1726151981737,28.35,135.62,135.53,4.97194287]
[1726151981983,28.35,135.62,135.53,3.61654246]
[1726151982146,3.318,135.63,135.52,28.35]
[1726151982517,2.6759,135.65,135.56,28.35]
[1726151983201,28.35,135.7,135.58,28.35]
[1726151983422,2.6026,135.67,135.56,31.96446378]
[1726151983430,2.6026,135.67,135.6,3.3186]
[1726151983946,2.6026,135.67,135.56,28.35]
[1726151984248,2.6026,135.67,135.58,28.35]
[1726151984939,1.402,135.69,135.58,28.35]
[1726151985332,28.35,135.68,135.56,32.07363534]
[1726151985635,3.3171,135.67,135.56,28.35]
[1726151985840,28.35,135.68,135.56,28.35]
[1726151986072,1.402,135.69,135.58,28.35]
[1726151986555,4.7187,135.69,135.62,3.318]
[1726151986835,1.402,135.69,135.58,28.35]
[1726151987139,1.402,135.69,135.61,3.3184]
[1726151987434,1.402,135.69,135.58,32.08064879]
[1726151987638,3.3173,135.66,135.58,3.73064879]
[1726151987842,28.35,135.68,135.56,28.35]
[1726151988336,28.35,135.68,135.56,31.96044801]
[1726151988836,31.6668,135.68,135.62,3.318]
[1726151989024,28.35,135.68,135.56,31.96044801]
[1726151989428,3.3171,135.67,135.56,31.96044801]
[1726151989946,31.6668,135.68,135.56,31.96044801]
[1726151990250,1.402,135.69,135.58,28.35]
[1726151990832,1.402,135.69,135.58,32.0282914]
[1726151991943,3.317,135.67,135.61,3.3183]
[1726151992936,4.7185,135.69,135.58,32.0282914]
[1726151993143,4.7185,135.69,135.61,28.35]
[1726151993144,1.402,135.69,135.61,28.35]
[1726151993343,28.35,135.72,135.61,28.35]
[1726151993532,28.35,135.72,135.66,3.3172]
[1726151993836,28.35,135.72,135.61,28.35]
[1726151994032,3.3161,135.71,135.61,28.35]
[1726151994429,28.35,135.72,135.61,28.35]
[1726151994674,3.3164,135.7,135.64,3.3176]
[1726151995840,3.3165,135.69,135.63,3.3179]
[1726151996423,32.10636527,135.7,135.58,32.0282914]
[1726151996640,28.35,135.7,135.58,28.35]
[1726151996824,1.3605,135.69,135.58,28.35]
[1726151997047,3.3168,135.68,135.62,3.3181]
[1726151997233,1.3605,135.69,135.58,32.06397253]
[1726151997524,3.3171,135.67,135.61,3.3183]
[1726151997740,1.3605,135.69,135.61,3.3183]
[1726151998135,1.3605,135.69,135.58,32.06397253]
[1726151998631,1.3605,135.69,135.61,3.3183]
[1726151999438,3.3171,135.67,135.61,3.3183]
[1726152000171,1.3605,135.69,135.58,32.06397253]
[1726152000670,3.3171,135.67,135.61,3.3184]
[1726152000831,28.35,135.68,135.58,32.06397253]
[1726152001037,1.3927,135.67,135.58,32.06397253]
[1726152001753,1.3605,135.69,135.6,28.35]
[1726152001936,1.3605,135.69,135.58,32.06397253]
[1726152002145,17.7,135.67,135.57,17.7]
[1726152002343,17.7,135.67,135.57,21.36327508]
[1726152002538,1.3681,135.66,135.57,21.36327508]
[1726152002755,1.3681,135.66,135.59,3.3188]
[1726152003136,19.0681,135.66,135.57,3.66327508]
[1726152003347,19.0681,135.66,135.55,17.7]
[1726152003742,3.3178,135.64,135.58,3.319]
[1726152004048,19.0681,135.66,135.55,21.30318513]
[1726152004049,1.3239,135.65,135.55,21.30318513]
[1726152004387,28.33,135.64,135.52,28.33]
[1726152004546,1.3239,135.65,135.52,28.33]
[1726152004940,3.3181,135.63,135.57,3.3193]
[1726152005140,1.3239,135.65,135.54,28.33]
[1726152005460,1.3239,135.65,135.54,32.08673084]
[1726152006346,2.7694,135.69,135.59,28.33]
[1726152006742,2.7694,135.69,135.54,32.08673084]
[1726152006743,28.33,135.68,135.57,28.33]
[1726152007058,28.33,135.68,135.54,32.08673084]
[1726152007747,3.3176,135.65,135.59,3.3188]
[1726152008255,28.33,135.68,135.59,3.3188]
[1726152008467,28.33,135.63,135.54,3.75673084]
[1726152008753,28.33,135.63,135.52,28.33]
[1726152009104,28.33,135.61,135.49,28.33]
[1726152009553,3.319,135.59,135.49,28.33]
[1726152009861,28.33,135.61,135.49,28.33]
[1726152010058,3.3187,135.6,135.49,28.33]
[1726152010369,28.33,135.61,135.49,28.33]
[1726152010654,3.3189,135.6,135.49,28.33]
[1726152010848,28.33,135.61,135.49,28.33]
[1726152011245,3.3192,135.58,135.49,28.33]
[1726152011747,3.3197,135.56,135.5,3.3211]
[1726152011957,28.33,135.59,135.47,31.9821127]
[1726152012152,28.33,135.59,135.47,28.33]
[1726152012559,28.33,135.59,135.52,3.3206]
[1726152012854,28.33,135.59,135.47,28.33]
[1726152013657,3.3192,135.58,135.51,3.3209]
[1726152013863,3.9988,135.62,135.45,32.01122071]
[1726152013864,28.33,135.56,135.45,32.01122071]
[1726152014156,31.6498,135.56,135.49,3.3212]
[1726152014378,28.33,135.56,135.49,3.61294794]
[1726152014549,28.33,135.56,135.45,28.33]
[1726152014859,3.3202,135.54,135.45,31.99071428]
[1726152015045,3.9569,135.55,135.45,31.99071428]
[1726152015248,7.2769,135.55,135.49,3.3214]
[1726152015450,3.9569,135.55,135.49,3.3214]
[1726152016054,3.9569,135.55,135.5,3.3211]
[1726152016469,28.33,135.59,135.47,28.33]
[1726152016653,28.33,135.59,135.51,3.3207]
[1726152016960,28.33,135.59,135.47,28.33]
[1726152017557,3.3198,135.56,135.47,28.33]
[1726152017856,28.33,135.59,135.49,3.3213]
[1726152018041,3.3199,135.56,135.49,3.3213]
[1726152018367,28.33,135.57,135.5,3.321]
[1726152018683,3.32,135.55,135.47,28.33]
[1726152018841,1.3577,135.56,135.47,28.33]
[1726152019164,1.3577,135.56,135.5,3.3209]
[1726152019578,1.3577,135.56,135.47,28.33]
[1726152021051,2.6326,135.62,135.51,28.33]
[1726152021250,2.6326,135.62,135.57,3.3193]
[1726152021458,2.6326,135.62,135.56,3.72481735]
[1726152021650,2.6326,135.62,135.51,28.33]
[1726152021877,2.6326,135.62,135.54,28.33]
[1726152022052,1.3036,135.62,135.54,32.02013356]
[1726152022551,29.6877,135.65,135.56,28.33]
[1726152022552,1.3577,135.65,135.56,28.33]
[1726152022957,1.3577,135.65,135.54,32.02013356]
[1726152023179,1.3577,135.65,135.54,28.33]
[1726152023347,1.3577,135.65,135.55,5.00475198]
[1726152023555,1.3577,135.65,135.56,3.74511106]
[1726152023752,1.3577,135.65,135.59,3.3188]
[1726152024051,1.3577,135.65,135.58,3.65176001]
[1726152024250,1.3577,135.65,135.56,28.33]
[1726152024843,1.3577,135.65,135.56,31.99740412]
[1726152025662,4.6753,135.65,135.59,3.3188]
[1726152026371,4.6753,135.65,135.56,31.99740412]
[1726152026372,1.3577,135.65,135.56,31.99740412]
[1726152026555,29.6877,135.65,135.54,28.33]
[1726152026776,29.6877,135.65,135.47,35.678]
[1726152026777,28.33,135.63,135.51,28.33]
[1726152026967,4.6234,135.62,135.55,8.3230176]
[1726152027183,1.305,135.62,135.55,3.3197]
[1726152027564,1.305,135.62,135.56,3.3196]
[1726152027765,1.305,135.62,135.54,14.54781537]
[1726152028061,1.305,135.62,135.56,3.3195]
[1726152028375,1.305,135.62,135.55,3.68675306]
[1726152029354,1.305,135.62,135.56,3.3195]
[1726152030676,1.305,135.62,135.55,3.3199]
[1726152030965,1.305,135.62,135.54,10.93436006]
[1726152031227,3.3189,135.6,135.53,3.3202]
[1726152031410,2.6739,135.62,135.52,14.68600708]
[1726152031674,3.3193,135.58,135.52,8.63073555]
[1726152031873,28.33,135.61,135.52,3.62258445]
[1726152032089,2.6739,135.62,135.51,28.33]
[1726152032270,28.33,135.61,135.52,8.74395284]
[1726152032565,28.33,135.61,135.52,3.73580174]
[1726152032770,3.3192,135.59,135.52,3.73580174]
[1726152032976,28.33,135.61,135.49,28.33]
[1726152033270,28.33,135.61,135.5,10.94100335]
[1726152033271,3.3194,135.58,135.5,10.94100335]
[1726152033469,28.33,135.61,135.5,18.95053636]
[1726152033685,28.33,135.59,135.5,10.94100335]
[1726152033855,3.3196,135.57,135.5,10.94100335]
[1726152034064,3.3196,135.57,135.5,14.26190335]
[1726152034568,3.3196,135.57,135.5,8.32746557]
[1726152034787,1.4063,135.58,135.47,28.33]
[1726152035117,1.3073,135.56,135.48,10.95215184]
[1726152035262,4.6272,135.56,135.5,3.321]
[1726152035463,1.3073,135.56,135.48,10.95215184]
[1726152035860,1.3073,135.56,135.48,18.96998089]
[1726152036061,1.4063,135.58,135.51,28.33]
[1726152037073,4.7257,135.58,135.52,8.32897812]
[1726152037270,1.4063,135.58,135.49,28.33]
[1726152037573,3.3199,135.56,135.5,22.2838488]
[1726152037769,3.3199,135.56,135.5,18.03124447]
[1726152038157,3.3199,135.56,135.5,12.09295778]
[1726152038394,3.3195,135.57,135.51,3.3209]
[1726152038573,1.4063,135.58,135.5,10.94807483]
[1726152038759,1.3073,135.61,135.56,3.3195]
[1726152039264,1.3073,135.61,135.57,3.3194]
[1726152039471,7.02983301,135.63,135.57,3.3194]
[1726152039672,1.296,135.65,135.54,32.09134267]
[1726152039869,1.296,135.65,135.58,3.319]
[1726152040065,1.296,135.65,135.56,28.33]
[1726152041067,4.6136,135.65,135.56,28.33]
[1726152041276,4.6136,135.65,135.57,5.00281739]
[1726152041277,1.296,135.65,135.57,5.00281739]
[1726152041590,1.296,135.65,135.56,32.02311896]
[1726152041771,3.3182,135.62,135.54,28.33]
[1726152041967,29.626,135.65,135.55,5.00498598]
[1726152042168,1.3787,135.61,135.55,5.00498598]
[1726152042574,1.3787,135.61,135.54,32.04081938]
[1726152042787,4.6973,135.61,135.54,35.36081938]
[1726152043001,1.3787,135.61,135.51,28.33]
[1726152043179,1.3787,135.61,135.52,18.94916104]
[1726152043377,3.3194,135.58,135.52,5.00599586]
[1726152043682,29.7087,135.61,135.52,10.94248082]
[1726152043874,3.3191,135.59,135.52,8.32649586]
[1726152044083,29.7087,135.61,135.52,5.93656718]
[1726152044279,29.7087,135.61,135.51,32.07428213]
[1726152044463,29.7087,135.61,135.52,5.00832294]
[1726152045375,3.3193,135.58,135.52,8.32882294]
[1726152045573,3.3193,135.58,135.52,14.26569662]
[1726152045769,3.3193,135.58,135.52,8.32882294]
[1726152046024,3.3195,135.57,135.52,5.00832294]
[1726152046291,3.3195,135.57,135.51,3.3208]
[1726152046483,3.3195,135.57,135.51,14.26503876]
[1726152046684,3.3195,135.57,135.52,3.3206]
[1726152046871,3.3195,135.57,135.51,10.94423876]
[1726152047126,3.3195,135.57,135.51,5.00832294]
[1726152047400,3.3195,135.57,135.51,8.32912294]
[1726152047679,29.7087,135.61,135.51,5.00832294]
[1726152047869,29.7087,135.61,135.51,10.94392759]
[1726152048068,3.3195,135.57,135.51,8.32797129]
[1726152048477,3.3195,135.57,135.51,14.26357594]
[1726152048882,29.7087,135.61,135.51,39.27287594]
[1726152049076,29.7087,135.61,135.51,33.33727129]
[1726152049282,29.7087,135.61,135.52,5.93409947]
[1726152049470,3.3193,135.58,135.52,9.25469947]
[1726152049878,3.3193,135.58,135.52,14.26072072]
[1726152050290,3.319,135.59,135.53,3.3204]
[1726152050680,1.3787,135.61,135.53,28.33]
[1726152050901,3.3179,135.64,135.58,3.3191]
[1726152051088,1.296,135.65,135.56,10.94012072]
[1726152051499,1.296,135.65,135.59,3.3187]
[1726152051778,1.296,135.65,135.58,3.61258669]
[1726152051975,1.296,135.65,135.6,3.3187]
[1726152052177,1.296,135.65,135.57,28.33]
[1726152052493,1.296,135.65,135.59,3.3188]
[1726152052686,4.6135,135.65,135.59,3.3188]
[1726152052869,1.296,135.65,135.58,3.64763169]
[1726152053191,4.6082,135.68,135.59,28.33]
[1726152053391,1.2914,135.68,135.59,28.33]
[1726152053685,1.2914,135.68,135.61,28.33]
[1726152054093,1.2914,135.68,135.59,28.33]
[1726152054478,1.2914,135.68,135.6,3.69736745]
[1726152054679,1.2914,135.68,135.62,3.3182]
[1726152054879,1.2914,135.68,135.6,4.99886956]
[1726152055142,1.2914,135.68,135.6,8.71725316]
[1726152055276,1.2914,135.68,135.6,17.03443277]
[1726152055480,3.3171,135.67,135.6,17.03443277]
[1726152055672,1.2914,135.68,135.6,9.99754917]
[1726152055885,1.2914,135.68,135.6,4.99867961]
[1726152055886,29.6214,135.68,135.6,4.99867961]
[1726152056195,29.6214,135.68,135.58,8.31932849]
[1726152056886,3.3177,135.65,135.58,8.31932849]
[1726152057186,29.6214,135.68,135.58,5.00032849]
[1726152057380,3.3176,135.65,135.58,5.00032849]
[1726152057592,3.3176,135.65,135.57,28.33]
[1726152057892,3.3176,135.65,135.58,4.99936773]
[1726152058191,3.3176,135.65,135.57,28.33]
[1726152058481,3.3173,135.66,135.58,4.99934179]